bitfinex/quotes_BTCUSD_20220111
["timestamp","ask_amount","ask_price","bid_price","bid_amount"]
[1641889998161,0.415557,42179.0,42175.0,0.00061961]
[1641889998367,0.46485904,42176.0,42175.0,0.00061961]
[1641889998564,0.46485904,42176.0,42168.0,0.0117]
[1641889998565,0.50845904,42176.0,42168.0,0.0117]
[1641889998762,0.415557,42176.0,42175.0,0.00061967]
[1641889998961,0.50845904,42176.0,42175.0,0.00061967]
[1641889999364,0.415557,42176.0,42175.0,0.35035993]
[1641889999561,0.58844462,42178.0,42175.0,0.35035993]
[1641889999763,0.58844462,42178.0,42175.0,0.50901526]
[1641889999964,0.92651872,42180.0,42176.0,0.00709796]
[1641889999966,0.58844462,42179.0,42176.0,0.00709796]
[1641890000163,0.58844462,42179.0,42176.0,0.18357721]
[1641890000364,0.58844462,42179.0,42177.0,0.91883413]
[1641890000564,0.58844462,42179.0,42178.0,0.371957]
[1641890000764,0.24,42180.0,42178.0,0.371957]
[1641890000965,0.24,42180.0,42178.0,0.421957]
[1641890001413,0.24,42180.0,42178.0,0.54048131]
[1641890001612,0.24,42180.0,42179.0,0.41849926]
[1641890001815,0.24,42180.0,42179.0,0.059264]
[1641890001816,0.33290204,42180.0,42179.0,0.059264]
[1641890002014,0.33290204,42180.0,42177.0,0.059264]
[1641890002215,0.371957,42179.0,42177.0,0.059264]
[1641890002813,0.371957,42179.0,42177.0,0.34511456]
[1641890003415,0.33290204,42180.0,42177.0,0.059264]
[1641890004416,0.371957,42179.0,42177.0,0.059264]
[1641890004616,0.33290204,42180.0,42177.0,0.059264]
[1641890005260,0.09290204,42178.0,42177.0,0.059264]
[1641890005861,0.24,42180.0,42178.0,0.059268]
[1641890006061,0.24,42180.0,42179.0,0.421957]
[1641890007464,0.00085402,42185.0,42179.0,0.421957]
[1641890007665,0.00085402,42185.0,42182.0,0.059263]
[1641890007865,0.00085402,42185.0,42183.0,0.371957]
[1641890008164,0.09290204,42194.0,42184.0,0.86367225]
[1641890008364,0.09290204,42194.0,42191.0,0.28849887]
[1641890008567,0.371957,42193.0,42192.0,0.39093807]
[1641890008810,0.09290204,42194.0,42192.0,0.44093807]
[1641890009013,0.371957,42193.0,42192.0,0.44093807]
[1641890009210,0.09290204,42194.0,42192.0,0.44093807]
[1641890009412,0.09290204,42194.0,42193.0,0.33197386]
[1641890009613,0.33290204,42194.0,42193.0,0.33197386]
[1641890009812,0.33290204,42194.0,42192.0,0.44093807]
[1641890010612,0.09290204,42194.0,42192.0,0.44093807]
[1641890010812,0.09290204,42194.0,42193.0,0.26946807]
[1641890011012,0.09290204,42194.0,42192.0,0.39093807]
[1641890011719,0.09290204,42194.0,42191.0,0.059255]
[1641890012113,0.09290204,42194.0,42192.0,0.32961082]
[1641890012575,0.36772556,42193.0,42190.0,0.118509]
[1641890012760,0.571957,42191.0,42178.0,0.009498]
[1641890012958,0.2,42190.0,42178.0,0.009498]
[1641890013159,0.09290204,42179.0,42178.0,0.009498]
[1641890014371,0.8325846,42179.0,42178.0,0.009498]
[1641890014562,0.9761846,42179.0,42178.0,0.009498]
[1641890014760,1.1761846,42179.0,42178.0,0.009498]
[1641890014963,0.80845904,42179.0,42178.0,0.009498]
[1641890015362,1.1761846,42179.0,42178.0,0.009498]
[1641890016061,0.60845904,42179.0,42178.0,0.009498]
[1641890016505,0.60845904,42179.0,42171.0,0.068788]
[1641890016506,0.95984188,42179.0,42171.0,0.068788]
[1641890016707,0.09290204,42172.0,42171.0,0.009498]
[1641890016911,0.09290204,42172.0,42168.0,0.0022]
[1641890016912,0.66613146,42172.0,42168.0,0.0022]
[1641890017109,0.46485904,42169.0,42168.0,0.0022]
[1641890017308,0.50845904,42169.0,42168.0,0.0022]
[1641890018408,0.371957,42166.0,42161.0,0.0041]
[1641890018709,0.13263104,42162.0,42161.0,0.0041]
[1641890018907,0.44043837,42162.0,42161.0,0.0041]
[1641890019107,0.64043837,42162.0,42161.0,0.0041]
[1641890019311,0.64043837,42162.0,42152.0,0.75853251]
[1641890019312,0.00121914,42157.0,42152.0,0.75853251]
[1641890019516,0.13772118,42157.0,42152.0,0.4426]
[1641890019707,0.13772118,42157.0,42156.0,0.01205418]
[1641890019708,0.13650204,42157.0,42156.0,0.01205418]
[1641890020176,0.13774522,42157.0,42153.0,0.00826669]
[1641890020362,0.09290204,42154.0,42153.0,0.00826669]
[1641890020560,0.13650204,42154.0,42153.0,0.00826669]
[1641890020961,0.44766048,42154.0,42153.0,0.00826669]
[1641890022463,0.64886744,42154.0,42153.0,0.00826669]
[1641890022661,1.02082444,42154.0,42153.0,0.00826669]
[1641890023461,1.12082444,42154.0,42153.0,0.00826669]
[1641890023661,1.02082444,42154.0,42153.0,0.00826669]
[1641890023921,0.509666,42154.0,42153.0,0.00826669]
[1641890024221,0.50845904,42154.0,42153.0,0.00826669]
[1641890024620,0.09290204,42154.0,42153.0,0.00826669]
[1641890024822,0.09290204,42154.0,42153.0,0.28028508]
[1641890025224,0.09290204,42154.0,42153.0,0.00826669]
[1641890027124,0.09290204,42154.0,42153.0,0.35479504]
[1641890028362,0.0436,42160.0,42153.0,1.1306033]
[1641890028561,1.02222956,42176.0,42153.0,1.1306033]
[1641890028562,0.68808867,42169.0,42153.0,0.55479504]
[1641890028762,0.68808867,42169.0,42156.0,0.059294]
[1641890028763,0.95382513,42168.0,42156.0,0.059294]
[1641890028962,0.36511296,42168.0,42155.0,0.118588]
[1641890029162,0.0012578,42169.0,42166.0,0.25950908]
[1641890029363,0.371957,42168.0,42166.0,0.38383977]
[1641890029967,0.371957,42168.0,42164.0,0.00061586]
[1641890030363,0.371957,42168.0,42165.0,0.30842246]
[1641890030763,0.371957,42168.0,42165.0,0.30342246]
[1641890030964,0.371957,42168.0,42166.0,0.42990971]
[1641890031164,0.30139232,42169.0,42166.0,0.42990971]
[1641890031408,0.0012376,42172.0,42166.0,0.42990971]
[1641890031609,0.371957,42171.0,42165.0,0.059298]
[1641890031909,0.059298,42170.0,42164.0,0.00061587]
[1641890032110,0.371957,42169.0,42164.0,0.00061587]
[1641890032307,0.371957,42169.0,42164.0,0.00061586]
[1641890032510,0.371957,42169.0,42164.0,0.33037058]
[1641890032709,0.371957,42169.0,42166.0,0.3141112]
[1641890032908,0.0012376,42172.0,42166.0,0.3141112]
[1641890033108,0.24214313,42170.0,42165.0,0.059295]
[1641890033308,0.371957,42169.0,42165.0,0.059295]
[1641890033509,0.0605336,42172.0,42165.0,0.059295]
[1641890033510,0.0012376,42172.0,42165.0,0.059295]
[1641890033711,0.371957,42171.0,42166.0,0.118575]
[1641890034309,0.9854,42175.0,42167.0,0.36522493]
[1641890034508,0.9854,42175.0,42173.0,0.26020751]
[1641890034710,0.9854,42175.0,42171.0,0.059277]
[1641890034712,0.371957,42174.0,42171.0,0.059277]
[1641890034909,0.371957,42174.0,42168.0,0.118566]
[1641890035166,0.27694874,42177.0,42173.0,0.3442358]
[1641890035361,0.371957,42176.0,42174.0,0.059282]
[1641890035564,0.371957,42176.0,42174.0,0.47974371]
[1641890035862,1.5365183,42183.0,42175.0,0.05]
[1641890036061,1.5365183,42183.0,42175.0,0.16855]
[1641890036062,0.00085411,42178.0,42175.0,0.16855]
[1641890036261,0.371957,42177.0,42175.0,0.16855]
[1641890036664,0.00085411,42178.0,42175.0,0.16855]
[1641890037064,0.27784194,42179.0,42175.0,0.16855]
[1641890037264,0.27869607,42179.0,42175.0,0.16855]
[1641890037668,0.371957,42178.0,42175.0,0.16855]
[1641890037866,0.27869607,42179.0,42175.0,0.16855]
[1641890038066,0.371957,42178.0,42173.0,0.3442358]
[1641890038668,0.371957,42178.0,42171.0,0.059287]
[1641890039112,0.33194807,42177.0,42167.0,0.118569]
[1641890039312,0.27346866,42170.0,42167.0,0.118569]
[1641890040413,0.059291,42176.0,42167.0,0.118569]
[1641890041111,0.059291,42176.0,42168.0,0.33189423]
[1641890041311,0.059291,42176.0,42169.0,0.059289]
[1641890041610,0.00748967,42170.0,42169.0,0.059289]
[1641890044361,0.00748967,42170.0,42169.0,0.068788]
[1641890044562,0.00748967,42170.0,42169.0,0.063788]
[1641890045762,0.00748967,42170.0,42169.0,0.435745]
[1641890045965,0.00143626,42170.0,42169.0,0.435745]
[1641890046415,0.00143626,42170.0,42169.0,0.535745]
[1641890046814,0.00143626,42170.0,42169.0,0.80785799]
[1641890048819,0.00085405,42178.0,42170.0,0.1019251]
[1641890049018,0.36633566,42189.0,42174.0,0.059261]
[1641890049318,0.00085405,42178.0,42176.0,0.059259]
[1641890049520,0.00085405,42178.0,42177.0,0.371957]
[1641890049719,0.00085405,42178.0,42175.0,0.41060923]
[1641890049720,0.27772826,42178.0,42175.0,0.41060923]
[1641890049920,0.00085405,42178.0,42175.0,0.41060923]
[1641890050161,0.00127371,42183.0,42175.0,0.41060923]
[1641890050367,0.00085413,42179.0,42175.0,0.40997387]
[1641890050664,0.371957,42178.0,42175.0,0.40997387]
[1641890050865,0.371957,42178.0,42175.0,0.46925587]
[1641890051063,0.371957,42178.0,42175.0,0.059282]
[1641890051263,0.36511296,42177.0,42169.0,0.059499]
[1641890051472,0.371957,42176.0,42169.0,0.009499]
[1641890051863,0.431248,42176.0,42169.0,0.009499]
[1641890052062,0.26238642,42171.0,42169.0,0.009499]
[1641890052564,0.059291,42176.0,42169.0,0.009499]
[1641890052862,0.371957,42175.0,42169.0,0.009499]
[1641890053466,0.23694492,42172.0,42169.0,0.009499]
[1641890054812,0.371957,42171.0,42169.0,0.009499]
[1641890055811,0.23694492,42172.0,42169.0,0.009499]
[1641890056811,0.23694492,42172.0,42169.0,0.068786]
[1641890057412,0.23694492,42172.0,42169.0,0.009499]
[1641890058362,0.23694492,42172.0,42164.0,0.11919483]
[1641890058363,0.33610891,42171.0,42164.0,0.00061583]
[1641890058566,0.33610891,42171.0,42157.0,0.90516857]
[1641890058567,0.415557,42170.0,42157.0,0.90516857]
[1641890058763,0.0436,42170.0,42164.0,0.00061583]
[1641890058965,0.371957,42169.0,42164.0,0.00061583]
[1641890059162,0.32223832,42165.0,42164.0,0.00061583]
[1641890059363,0.36583832,42165.0,42164.0,0.00061583]
[1641890059763,0.36583832,42165.0,42160.0,0.34428664]
[1641890060064,0.36583832,42165.0,42162.0,0.00061591]
[1641890060565,0.42514073,42165.0,42162.0,0.00061591]
[1641890060765,0.4326304,42165.0,42162.0,0.00061591]
[1641890060965,0.4326304,42165.0,42160.0,0.40358764]
[1641890061170,0.4326304,42165.0,42161.0,0.00061593]
[1641890062008,0.37332799,42165.0,42161.0,0.00061593]
[1641890062209,0.37332799,42165.0,42161.0,0.059301]
[1641890062410,0.37332799,42165.0,42161.0,0.05991694]
[1641890062910,0.37332799,42165.0,42156.0,0.009502]
[1641890062911,0.05930879,42161.0,42156.0,0.009502]
[1641890063113,0.33770256,42160.0,42156.0,0.009502]
[1641890063313,0.00124074,42158.0,42156.0,0.009502]
[1641890063514,0.0436,42157.0,42156.0,0.009502]
[1641890064314,0.37934233,42157.0,42156.0,0.009502]
[1641890064514,0.415557,42157.0,42156.0,0.009502]
[1641890064917,0.615557,42157.0,42156.0,0.009502]
[1641890066268,0.615557,42157.0,42138.0,0.29874537]
[1641890066269,0.0012015,42153.0,42138.0,0.29874537]
[1641890066468,0.0012015,42153.0,42136.0,0.0022]
[1641890066469,0.0436,42152.0,42136.0,0.0011]
[1641890066668,0.00128382,42144.0,42135.0,0.0033]
[1641890066867,0.059355,42140.0,42135.0,0.0033]
[1641890067068,0.00126882,42137.0,42135.0,0.0033]
[1641890067266,0.415557,42136.0,42135.0,0.0033]
[1641890067466,0.371957,42135.0,42134.0,0.0001]
[1641890067671,0.2,42133.0,42132.0,0.0118785]
[1641890067867,0.615557,42133.0,42132.0,0.0118785]
[1641890068173,0.615557,42133.0,42126.0,0.02256078]
[1641890068174,0.371957,42132.0,42126.0,0.02256078]
[1641890068378,0.371957,42132.0,42113.0,0.43157481]
[1641890068379,0.2,42127.0,42113.0,0.43157481]
[1641890068571,0.26064622,42122.0,42113.0,0.43157481]
[1641890068830,0.0436,42121.0,42113.0,0.43157481]
[1641890069020,0.2,42120.0,42113.0,0.43257481]
[1641890069218,0.00121826,42117.0,42113.0,0.001]
[1641890069421,0.00121826,42117.0,42113.0,0.0021]
[1641890069637,0.371957,42116.0,42113.0,0.0021]
[1641890069920,0.0436,42116.0,42113.0,0.0021]
[1641890070120,0.0436,42116.0,42114.0,0.371957]
[1641890070419,0.24,42120.0,42115.0,1.08499669]
[1641890070620,0.24,42120.0,42119.0,0.27947292]
[1641890070820,0.24,42120.0,42119.0,0.371957]
[1641890071219,0.24,42120.0,42118.0,0.059349]
[1641890071426,0.24,42120.0,42119.0,0.42]
[1641890071621,0.24,42120.0,42119.0,0.12051562]
[1641890071819,0.2,42119.0,42113.0,0.0022]
[1641890072021,0.00127811,42116.0,42113.0,0.0022]
[1641890072219,0.371957,42115.0,42113.0,0.0022]
[1641890072419,0.0436,42118.0,42113.0,0.0022]
[1641890072667,0.371957,42117.0,42115.0,0.2523079]
[1641890072868,0.0436,42117.0,42115.0,0.68832803]
[1641890073068,0.0436,42117.0,42116.0,0.371957]
[1641890073466,0.0436,42117.0,42116.0,0.47003084]
[1641890073668,0.24,42120.0,42116.0,1.26005461]
[1641890073868,0.24,42120.0,42117.0,0.39504336]
[1641890074069,0.24,42120.0,42118.0,0.421957]
[1641890074270,0.24,42120.0,42119.0,0.38083762]
[1641890074468,0.24,42120.0,42117.0,0.059355]
[1641890075068,0.24,42120.0,42117.0,0.109355]
[1641890076169,0.24,42120.0,42117.0,0.059355]
[1641890077816,0.2,42119.0,42116.0,0.0011165]
[1641890078214,0.2,42118.0,42116.0,0.0011165]
[1641890078417,0.24,42120.0,42116.0,0.0011165]
[1641890078816,0.24,42120.0,42117.0,0.371957]
[1641890079018,0.24,42120.0,42119.0,0.00110921]
[1641890079819,0.44,42120.0,42119.0,0.00110921]
[1641890080363,0.611957,42120.0,42119.0,0.00110921]
[1641890080564,0.611957,42120.0,42113.0,0.0022]
[1641890080565,0.571957,42119.0,42113.0,0.0011]
[1641890080766,0.20127221,42114.0,42113.0,0.0011]
[1641890080966,0.415557,42114.0,42113.0,0.0011]
[1641890081365,0.415557,42114.0,42104.0,0.27917653]
[1641890081566,0.415557,42114.0,42103.0,0.169]
[1641890081567,0.371957,42113.0,42103.0,0.169]
[1641890081769,0.371957,42113.0,42104.0,0.36635882]
[1641890081770,0.0436,42112.0,42104.0,0.36635882]
[1641890081966,0.00122888,42110.0,42103.0,0.287742]
[1641890082165,0.00122888,42110.0,42103.0,0.169]
[1641890082166,0.0436,42109.0,42103.0,0.169]
[1641890082366,0.001265,42105.0,42103.0,0.169]
[1641890083167,0.001265,42105.0,42103.0,0.17]
[1641890083369,0.0436,42109.0,42103.0,0.50680172]
[1641890083822,0.2436,42109.0,42103.0,0.17]
[1641890084015,0.2436,42109.0,42104.0,0.00035231]
[1641890084016,0.00120581,42108.0,42104.0,0.00035231]
[1641890084617,0.00120581,42108.0,42107.0,0.27528799]
[1641890084815,0.0436,42115.0,42107.0,0.27528799]
[1641890085015,0.00125718,42116.0,42110.0,0.118722]
[1641890085215,9.0,42120.0,42119.0,0.31290394]
[1641890085415,9.371957,42120.0,42112.0,0.05]
[1641890085618,0.371957,42119.0,42112.0,0.05]
[1641890085816,9.0,42120.0,42115.0,0.36951889]
[1641890086016,0.371957,42119.0,42115.0,0.41951889]
[1641890086216,0.371957,42119.0,42112.0,0.05]
[1641890086416,0.371957,42119.0,42115.0,0.059357]
[1641890086616,0.371957,42119.0,42114.0,0.11871]
[1641890087019,0.371957,42119.0,42114.0,0.11971]
[1641890087764,0.371957,42119.0,42114.0,0.001]
[1641890088166,0.571957,42119.0,42114.0,0.001]
[1641890088368,0.00123674,42117.0,42113.0,0.00047581]
[1641890088565,0.00123674,42117.0,42105.0,0.059371]
[1641890088566,0.371957,42116.0,42105.0,0.059371]
[1641890088766,0.371957,42116.0,42113.0,0.00047581]
[1641890089367,0.37321033,42114.0,42113.0,0.00047581]
[1641890089765,0.37321033,42114.0,42105.0,0.001]
[1641890089966,0.371957,42113.0,42111.0,0.00044185]
[1641890090166,0.88624813,42112.0,42111.0,0.00044185]
[1641890090568,0.92984813,42112.0,42111.0,0.00044185]
[1641890090967,0.92984813,42112.0,42103.0,0.17451828]
[1641890091168,0.00125821,42105.0,42103.0,0.17628608]
[1641890091817,0.59402534,42108.0,42103.0,0.17528608]
[1641890092016,0.31651908,42109.0,42103.0,0.0017678]
[1641890092017,0.00121381,42105.0,42103.0,0.0017678]
[1641890092220,0.371957,42104.0,42102.0,0.10260592]
[1641890092418,0.371957,42104.0,42101.0,0.008]
[1641890092419,0.371957,42104.0,42103.0,0.00044198]
[1641890092622,0.2593919,42105.0,42103.0,0.00044198]
[1641890092819,0.2593919,42105.0,42097.0,0.0017682]
[1641890092820,0.00120283,42102.0,42097.0,0.0017682]
[1641890093019,0.039729,42101.0,42097.0,0.0017682]
[1641890093219,0.00120283,42102.0,42097.0,0.0017682]
[1641890093421,0.00120283,42102.0,42095.0,0.0011]
[1641890093422,0.05940151,42101.0,42095.0,0.0011]
[1641890093620,0.204,42105.0,42095.0,0.0011]
[1641890093817,0.2,42103.0,42095.0,0.0011]
[1641890094018,0.571957,42099.0,42095.0,0.0011]
[1641890094619,0.571957,42097.0,42095.0,0.0011]
[1641890095171,0.571957,42097.0,42096.0,0.0083188]
[1641890095373,0.371957,42097.0,42096.0,0.0083188]
[1641890096372,0.571957,42097.0,42096.0,0.0043188]
[1641890096774,0.371957,42097.0,42096.0,0.0043188]
[1641890097074,0.372957,42097.0,42096.0,0.0093188]
[1641890097774,0.372957,42097.0,42096.0,0.29995578]
[1641890097976,0.001,42097.0,42096.0,0.63532211]
[1641890098375,0.5878183,42103.0,42096.0,0.63032211]
[1641890098821,0.371957,42102.0,42098.0,0.09855048]
[1641890099013,0.371957,42102.0,42099.0,0.10117457]
[1641890099212,0.371957,42102.0,42101.0,0.09695461]
[1641890099413,0.371957,42102.0,42099.0,0.118779]
[1641890099613,0.37318977,42101.0,42098.0,0.00057329]
[1641890100614,0.37318977,42101.0,42097.0,0.25141293]
[1641890100816,0.371957,42101.0,42097.0,0.25198625]
[1641890101014,0.001,42103.0,42097.0,0.25198625]
[1641890101015,0.001,42103.0,42098.0,0.10536799]
[1641890101214,0.001,42103.0,42099.0,0.118752]
[1641890101415,0.24,42101.0,42100.0,0.059376]
[1641890101613,0.24,42101.0,42100.0,0.431333]
[1641890101913,0.24,42101.0,42100.0,0.88810415]
[1641890102317,0.24,42101.0,42100.0,1.20068515]
[1641890102772,0.24,42101.0,42100.0,0.82872815]
[1641890103171,0.24,42101.0,42100.0,1.20368515]
[1641890103869,0.24,42101.0,42100.0,0.83172815]
[1641890104070,0.24,42101.0,42100.0,1.20368515]
[1641890104271,0.00748967,42112.0,42100.0,1.20368515]
[1641890104470,0.00748967,42112.0,42105.0,0.059375]
[1641890104871,0.00748967,42112.0,42105.0,0.109375]
[1641890105072,0.00848967,42112.0,42105.0,0.170742]
[1641890105278,0.00848967,42112.0,42105.0,0.111375]
[1641890105476,0.00848967,42112.0,42111.0,0.33135222]
[1641890105674,0.38044667,42112.0,42111.0,0.43804474]
[1641890106076,0.00848967,42112.0,42111.0,0.43804474]
[1641890106324,0.00748967,42112.0,42111.0,0.43804474]
[1641890106512,0.00748967,42112.0,42111.0,0.85464191]
[1641890106714,0.00748967,42112.0,42111.0,1.49519891]
[1641890106914,0.00085461,42117.0,42114.0,0.059358]
[1641890107122,0.00085461,42117.0,42115.0,0.43237407]
[1641890107313,0.00085461,42117.0,42116.0,0.0436]
[1641890107513,9.0,42120.0,42116.0,0.0436]
[1641890107514,8.52610061,42120.0,42116.0,0.0436]
[1641890107714,8.52610061,42120.0,42118.0,0.63761757]
[1641890107918,8.05132861,42120.0,42118.0,1.02642915]
[1641890108116,6.92612861,42120.0,42118.0,1.02642915]
[1641890108316,0.5878183,42131.0,42119.0,0.04489556]
[1641890108519,0.5878183,42131.0,42129.0,0.00125935]
[1641890108718,0.5878183,42134.0,42129.0,0.00125935]
[1641890108918,0.371957,42133.0,42129.0,0.00125935]
[1641890109115,0.001,42131.0,42129.0,0.4755371]
[1641890109318,0.001,42131.0,42130.0,0.42886759]
[1641890109617,0.001,42131.0,42129.0,0.00325935]
[1641890109819,0.371957,42130.0,42129.0,0.002]
[1641890110073,0.001,42131.0,42129.0,0.002]
[1641890110277,0.571957,42130.0,42129.0,0.002]
[1641890110577,1.64849209,42130.0,42129.0,0.002]
[1641890110774,0.371957,42130.0,42129.0,0.002]
[1641890111171,0.620957,42130.0,42129.0,0.002]
[1641890112071,0.249,42130.0,42129.0,0.052]
[1641890112471,0.24,42130.0,42129.0,0.41516576]
[1641890113072,0.24,42130.0,42129.0,0.36516576]
[1641890113275,0.241,42130.0,42129.0,0.002]
[1641890113572,0.612957,42130.0,42129.0,0.002]
[1641890115017,0.612957,42130.0,42128.0,0.059351]
[1641890115018,0.24,42130.0,42128.0,0.059351]
[1641890115221,0.241,42130.0,42129.0,0.001]
[1641890115417,0.241,42130.0,42129.0,0.051]
[1641890115721,0.241,42130.0,42129.0,0.001]
[1641890115921,0.98628554,42130.0,42129.0,0.001]
[1641890116117,0.612957,42130.0,42129.0,0.001]
[1641890116718,0.90641349,42130.0,42129.0,0.001]
[1641890116918,0.612957,42130.0,42129.0,0.001]
[1641890117119,0.613957,42130.0,42129.0,0.001]
[1641890119069,0.611957,42130.0,42126.0,0.059352]
[1641890119271,0.243,42130.0,42129.0,0.002]
[1641890119469,0.243,42130.0,42129.0,0.269975]
[1641890119768,0.243,42130.0,42129.0,0.319975]
[1641890119969,0.243,42130.0,42129.0,0.269975]
[1641890120270,0.243,42130.0,42129.0,0.002]
[1641890120470,0.614957,42130.0,42129.0,0.002]
[1641890120668,0.611957,42130.0,42126.0,0.059352]
[1641890120869,0.371957,42129.0,42126.0,0.059352]
[1641890121327,0.39050282,42128.0,42126.0,0.004]
[1641890121515,0.75621193,42127.0,42126.0,0.004]
[1641890122416,0.75621193,42127.0,42125.0,0.005232]
[1641890122417,1.08235401,42127.0,42125.0,0.005232]
[1641890122614,0.371957,42126.0,42125.0,0.005232]
[1641890123218,0.374957,42126.0,42125.0,0.005232]
[1641890124416,0.371957,42126.0,42125.0,0.005232]
[1641890125270,0.375957,42126.0,42125.0,0.005232]
[1641890126471,0.371957,42126.0,42125.0,0.005232]
[1641890126669,0.371957,42126.0,42125.0,0.31093462]
[1641890126869,0.00085456,42128.0,42125.0,0.31093462]
[1641890127070,0.371957,42127.0,42125.0,0.31093462]
[1641890127272,0.002,42126.0,42125.0,0.31293462]
[1641890128472,0.00085456,42128.0,42125.0,0.31093462]
[1641890128669,0.00085456,42128.0,42125.0,0.37028562]
[1641890128922,0.00085456,42128.0,42125.0,0.42963662]
[1641890129320,0.00285456,42128.0,42125.0,0.43163662]
[1641890129519,0.002,42128.0,42125.0,0.43163662]
[1641890130124,0.002,42128.0,42125.0,0.37228562]
[1641890130320,0.371957,42127.0,42125.0,0.37228562]
[1641890130521,0.002,42128.0,42125.0,0.37228562]
[1641890130724,0.00285455,42128.0,42125.0,0.31293462]
[1641890131125,0.371957,42127.0,42125.0,0.31093462]
[1641890131325,0.371957,42127.0,42125.0,0.31193462]
[1641890131725,0.371957,42127.0,42125.0,0.37128662]
[1641890131925,0.00285455,42128.0,42125.0,0.37128662]
[1641890132125,0.00285455,42128.0,42125.0,0.065584]
[1641890132566,0.371957,42127.0,42125.0,0.064584]
[1641890132770,0.00085455,42128.0,42125.0,0.064584]
[1641890133069,0.24,42130.0,42125.0,0.04375381]
[1641890133267,0.24,42130.0,42126.0,0.059348]
[1641890133268,0.00085455,42128.0,42126.0,0.059348]
[1641890134172,0.24,42130.0,42126.0,0.059348]
[1641890134469,0.00085455,42129.0,42126.0,0.059348]
[1641890134770,0.00085455,42129.0,42123.0,0.49418016]
[1641890134968,0.00085455,42129.0,42124.0,0.059353]
[1641890135168,0.00385455,42129.0,42124.0,0.059353]
[1641890135368,0.30461322,42129.0,42124.0,0.059353]
[1641890135569,0.30546777,42129.0,42124.0,0.059353]
[1641890135769,0.059356,42128.0,42123.0,0.32748316]
[1641890135970,0.30546777,42129.0,42123.0,0.32748316]
[1641890136171,0.30546777,42129.0,42123.0,0.37748316]
[1641890136414,0.30546777,42129.0,42123.0,0.37548316]
[1641890136415,0.00385455,42129.0,42123.0,0.37548316]
[1641890136615,0.24,42130.0,42123.0,0.37548316]
[1641890136819,0.24,42130.0,42123.0,0.49418216]
[1641890136820,0.00085455,42128.0,42123.0,0.49418216]
[1641890137214,0.00085455,42128.0,42123.0,0.49618216]
[1641890137614,0.00085455,42128.0,42123.0,0.44618216]
[1641890137814,0.28599521,42129.0,42123.0,0.44618216]
[1641890138017,0.00085456,42128.0,42125.0,0.118702]
[1641890138418,0.00085456,42128.0,42126.0,0.118691]
[1641890138818,0.00085456,42128.0,42126.0,0.58373879]
[1641890139019,0.24,42130.0,42126.0,0.118691]
[1641890139219,0.002,42128.0,42127.0,0.059349]
[1641890140070,0.00085455,42129.0,42127.0,0.99129239]
[1641890140270,0.24,42130.0,42129.0,0.1010476]
[1641890140471,0.24085454,42130.0,42129.0,0.60426503]
[1641890140671,0.5878183,42134.0,42133.0,0.00124042]
[1641890140870,0.5878183,42134.0,42133.0,0.51297815]
[1641890141071,0.5878183,42134.0,42133.0,1.34965723]
[1641890141272,0.5878183,42134.0,42133.0,1.35265723]
[1641890141273,0.5898183,42134.0,42133.0,1.35265723]
[1641890141475,0.002,42134.0,42133.0,1.40265723]
[1641890141673,0.002,42134.0,42133.0,1.30595916]
[1641890141875,0.002,42134.0,42133.0,1.40187415]
[1641890142474,0.00735273,42140.0,42133.0,1.39887415]
[1641890142675,0.00735273,42140.0,42133.0,1.45820315]
[1641890142874,0.00085449,42136.0,42134.0,0.05]
[1641890143076,0.00085449,42136.0,42134.0,0.40924197]
[1641890143923,0.00735273,42140.0,42134.0,0.40924197]
[1641890144121,0.00085448,42137.0,42134.0,0.40924197]
[1641890144622,0.00085448,42137.0,42134.0,0.45924197]
[1641890145019,0.00735273,42140.0,42134.0,0.45924197]
[1641890145221,0.00085448,42137.0,42134.0,0.46524197]
[1641890145420,0.00085448,42137.0,42134.0,0.56524197]
[1641890145620,0.00085448,42137.0,42134.0,0.68389197]
[1641890145820,0.00085448,42137.0,42134.0,1.05644297]
[1641890146121,0.00735273,42140.0,42134.0,1.05644297]
[1641890146319,0.00085448,42137.0,42134.0,1.05644297]
[1641890146519,0.00085448,42137.0,42134.0,1.05044297]
[1641890146922,0.00085448,42137.0,42134.0,0.95044297]
[1641890147321,0.00735273,42140.0,42134.0,0.95644297]
[1641890147571,0.00085448,42137.0,42134.0,0.95644297]
[1641890148570,0.00735273,42140.0,42134.0,0.95044297]
[1641890148770,0.00085448,42137.0,42134.0,0.95044297]
[1641890148973,0.00085448,42137.0,42135.0,0.1779785]
[1641890149173,0.00085448,42137.0,42136.0,0.82681107]
[1641890149570,0.00085448,42137.0,42136.0,0.87681107]
[1641890149875,0.00735273,42140.0,42138.0,0.04169994]
[1641890150073,0.00735273,42140.0,42139.0,0.81930845]
[1641890150272,0.00735273,42140.0,42139.0,0.91930845]
[1641890150477,0.00735273,42140.0,42139.0,0.81930845]
[1641890150674,0.00735273,42140.0,42139.0,0.91930845]
[1641890151334,0.00735273,42140.0,42139.0,0.92330845]
[1641890152122,0.24735273,42140.0,42139.0,0.92330845]
[1641890152321,0.24735273,42140.0,42139.0,0.422493]
[1641890152721,0.00085444,42142.0,42140.0,0.60751521]
[1641890152922,0.00085444,42142.0,42141.0,0.257108]
[1641890153321,0.01185444,42142.0,42141.0,0.257108]
[1641890153621,0.011,42142.0,42141.0,0.257108]
[1641890154224,0.011,42142.0,42141.0,0.357108]
[1641890154626,0.008,42149.0,42141.0,0.307108]
[1641890154824,0.008,42149.0,42146.0,0.059319]
[1641890155072,0.372493,42148.0,42146.0,0.059319]
[1641890155270,0.372493,42148.0,42147.0,0.44079695]
[1641890155468,0.008,42149.0,42147.0,0.44079695]
[1641890155669,0.008,42149.0,42147.0,0.55011495]
[1641890155869,0.008,42149.0,42147.0,0.50011495]
[1641890156068,0.008,42149.0,42147.0,0.55011495]
[1641890156369,0.008,42149.0,42147.0,0.92577412]
[1641890156768,0.008,42149.0,42147.0,0.87577412]
[1641890157170,0.008,42149.0,42148.0,0.47471553]
[1641890158169,0.008,42149.0,42147.0,0.88077412]
[1641890158370,0.008,42149.0,42147.0,0.83077412]
[1641890158572,0.008,42149.0,42147.0,0.059318]